[Event "*** Titled Tuesday Blitz"]
[Site "Chess.com"]
[Date "2020.04.14"]
[Round "6"]
[White "lrestevez"]
[Black "hakki1"]
[Result "0-1"]
[WhiteElo "2159"]
[BlackElo "2392"]
[TimeControl "180+1"]
[EndTime "11:01:50 PDT"]
[Termination "hakki1 won by resignation"]

1. e4 {[%clk 0:03:00.9]} 1... Nf6 {[%clk 0:02:59.2]} 2. e5 {[%clk 0:03:00.7]}
2... Nd5 {[%clk 0:02:59.1]} 3. Nc3 {[%clk 0:03:01.6]} 3... c6 {[%clk 0:02:58.3]}
4. Bc4 {[%clk 0:03:00.3]} 4... e6 {[%clk 0:02:57.7]} 5. d4 {[%clk 0:02:59.6]}
5... d6 {[%clk 0:02:57.4]} 6. exd6 {[%clk 0:02:58.9]} 6... Bxd6 {[%clk
0:02:56.3]} 7. Nxd5 {[%clk 0:02:59]} 7... cxd5 {[%clk 0:02:53.9]} 8. Bd3 {[%clk
0:02:59]} 8... O-O {[%clk 0:02:52.5]} 9. Nf3 {[%clk 0:02:59.1]} 9... h6 {[%clk
0:02:47.8]} 10. O-O {[%clk 0:02:58.8]} 10... Nc6 {[%clk 0:02:47.6]} 11. c3
{[%clk 0:02:59.2]} 11... Bd7 {[%clk 0:02:42.8]} 12. Be3 {[%clk 0:02:57.9]} 12...
Qf6 {[%clk 0:02:41]} 13. Bc2 {[%clk 0:02:55.1]} 13... Qe7 {[%clk 0:02:32.1]} 14.
Qd2 {[%clk 0:02:50.6]} 14... f5 {[%clk 0:02:30]} 15. Bf4 {[%clk 0:02:47.4]}
15... Bxf4 {[%clk 0:02:19.4]} 16. Qxf4 {[%clk 0:02:46.5]} 16... g5 {[%clk
0:02:19.3]} 17. Qd2 {[%clk 0:02:45.7]} 17... g4 {[%clk 0:02:14.2]} 18. Ne5
{[%clk 0:02:45.4]} 18... Nxe5 {[%clk 0:02:13.2]} 19. dxe5 {[%clk 0:02:46.3]}
19... Qg5 {[%clk 0:02:10.2]} 20. Qd4 {[%clk 0:01:58.9]} 20... f4 {[%clk
0:02:03.5]} 21. Qd3 {[%clk 0:01:58.3]} 21... Rf5 {[%clk 0:01:33.6]} 22. Rfe1
{[%clk 0:01:54.5]} 22... Raf8 {[%clk 0:01:32.9]} 23. Qd4 {[%clk 0:01:51.2]}
23... R5f7 {[%clk 0:01:31.2]} 24. Qxa7 {[%clk 0:01:40.6]} 24... g3 {[%clk
0:01:31.3]} 25. hxg3 {[%clk 0:01:31]} 25... fxg3 {[%clk 0:01:30.6]} 26. fxg3
{[%clk 0:01:31.3]} 26... Qd2 {[%clk 0:01:13.7]} 27. Qe3 {[%clk 0:00:40]} 27...
Qxc2 {[%clk 0:01:12.8]} 28. Qxh6 {[%clk 0:00:39.6]} 28... Qf2+ {[%clk
0:01:08.9]} 0-1

[Event "*** Titled Tuesday Blitz"]
[Site "Chess.com"]
[Date "2020.04.14"]
[Round "6"]
[White "Nitzan_Steinberg"]
[Black "Bigfish1995"]
[Result "0-1"]
[WhiteElo "2902"]
[BlackElo "3107"]
[TimeControl "180+1"]
[EndTime "11:01:53 PDT"]
[Termination "Bigfish1995 won by checkmate"]

1. e4 {[%clk 0:03:00.9]} 1... e5 {[%clk 0:02:59.8]} 2. Nf3 {[%clk 0:03:01]} 2...
Nc6 {[%clk 0:03:00.1]} 3. Bb5 {[%clk 0:03:00.4]} 3... a6 {[%clk 0:02:59.6]} 4.
Ba4 {[%clk 0:03:00.7]} 4... Nf6 {[%clk 0:02:59.8]} 5. O-O {[%clk 0:03:01]} 5...
b5 {[%clk 0:02:59.9]} 6. Bb3 {[%clk 0:03:00.7]} 6... Bc5 {[%clk 0:03:00.5]} 7.
c3 {[%clk 0:03:00.8]} 7... d6 {[%clk 0:03:00.5]} 8. d4 {[%clk 0:02:55.7]} 8...
Bb6 {[%clk 0:03:00.6]} 9. a4 {[%clk 0:02:55.5]} 9... Bg4 {[%clk 0:03:00.7]} 10.
d5 {[%clk 0:02:31.3]} 10... Ne7 {[%clk 0:02:58.9]} 11. Re1 {[%clk 0:02:22.7]}
11... O-O {[%clk 0:02:33.9]} 12. Qd3 {[%clk 0:02:10.4]} 12... Nd7 {[%clk
0:02:32.2]} 13. Be3 {[%clk 0:01:23]} 13... Bxf3 {[%clk 0:02:09.9]} 14. gxf3
{[%clk 0:01:23.9]} 14... Ng6 {[%clk 0:01:54.2]} 15. Kh1 {[%clk 0:01:23.8]} 15...
Qf6 {[%clk 0:01:50.2]} 16. Bxb6 {[%clk 0:01:21.2]} 16... cxb6 {[%clk 0:01:48.8]}
17. Qe3 {[%clk 0:01:18.2]} 17... Nc5 {[%clk 0:01:41.4]} 18. Bc2 {[%clk
0:01:16.5]} 18... bxa4 {[%clk 0:01:41]} 19. Bxa4 {[%clk 0:01:16.1]} 19... Nf4
{[%clk 0:01:29.8]} 20. Bc2 {[%clk 0:01:14]} 20... Qh4 {[%clk 0:01:20.6]} 21. Rg1
{[%clk 0:01:12.5]} 21... f5 {[%clk 0:01:03.1]} 22. b4 {[%clk 0:01:03.1]} 22...
Rf6 {[%clk 0:01:02.2]} 23. bxc5 {[%clk 0:00:37.8]} 23... Qxh2+ {[%clk
0:01:01.9]} 24. Kxh2 {[%clk 0:00:36.2]} 24... Rh6+ {[%clk 0:01:02.6]} 25. Kg3
{[%clk 0:00:35.7]} 25... Rh3# {[%clk 0:01:03.3]} 0-1

[Event "*** Titled Tuesday Blitz"]
[Site "Chess.com"]
[Date "2020.04.14"]
[Round "6"]
[White "Alexandercs432"]
[Black "BojanR1"]
[Result "0-1"]
[WhiteElo "2119"]
[BlackElo "2336"]
[TimeControl "180+1"]
[EndTime "11:01:56 PDT"]
[Termination "BojanR1 won on time"]

1. e4 {[%clk 0:03:00.9]} 1... c5 {[%clk 0:02:59.6]} 2. Nf3 {[%clk 0:03:00.7]}
2... Nc6 {[%clk 0:03:00.3]} 3. d4 {[%clk 0:03:01.1]} 3... cxd4 {[%clk
0:03:01.2]} 4. Nxd4 {[%clk 0:03:01.3]} 4... e5 {[%clk 0:03:00.8]} 5. Nb5 {[%clk
0:03:00]} 5... a6 {[%clk 0:03:00.3]} 6. Nd6+ {[%clk 0:02:59.6]} 6... Bxd6 {[%clk
0:03:00.7]} 7. Qxd6 {[%clk 0:03:00.3]} 7... Qf6 {[%clk 0:03:01.2]} 8. Qxf6
{[%clk 0:03:00]} 8... Nxf6 {[%clk 0:03:02.1]} 9. Nc3 {[%clk 0:03:00.2]} 9... d5
{[%clk 0:03:02.4]} 10. Bg5 {[%clk 0:02:59.4]} 10... d4 {[%clk 0:03:01.6]} 11.
Nd5 {[%clk 0:00:38.1]} 11... Nxd5 {[%clk 0:03:00.3]} 12. exd5 {[%clk 0:00:38]}
12... Nb4 {[%clk 0:03:00.3]} 13. O-O-O {[%clk 0:00:31.1]} 13... f6 {[%clk
0:02:53.7]} 14. Bd2 {[%clk 0:00:21.6]} 14... Nxd5 {[%clk 0:02:50.6]} 15. Bc4
{[%clk 0:00:19.7]} 15... Be6 {[%clk 0:02:50.5]} 16. Bxd5 {[%clk 0:00:17.1]}
16... Bxd5 {[%clk 0:02:50.3]} 17. Kb1 {[%clk 0:00:17.1]} 17... O-O {[%clk
0:02:48.2]} 18. f3 {[%clk 0:00:16.4]} 18... Rac8 {[%clk 0:02:46.6]} 19. Bb4
{[%clk 0:00:11.7]} 19... Rfd8 {[%clk 0:02:45.6]} 20. b3 {[%clk 0:00:10.1]} 20...
Kf7 {[%clk 0:02:43.7]} 21. Rhe1 {[%clk 0:00:09.4]} 21... b6 {[%clk 0:02:42]} 22.
Ba3 {[%clk 0:00:09.4]} 22... Re8 {[%clk 0:02:33.6]} 23. Bb2 {[%clk 0:00:09.3]}
23... Rc7 {[%clk 0:02:32.1]} 24. h3 {[%clk 0:00:09.4]} 24... g5 {[%clk
0:02:30.2]} 25. Rd2 {[%clk 0:00:09.4]} 25... h5 {[%clk 0:02:29.9]} 26. Ree2
{[%clk 0:00:08.5]} 26... Rec8 {[%clk 0:02:29.4]} 27. Re1 {[%clk 0:00:07.7]}
27... Be6 {[%clk 0:02:29.5]} 28. Ree2 {[%clk 0:00:07.9]} 28... Bf5 {[%clk
0:02:29.7]} 29. a4 {[%clk 0:00:06.4]} 29... b5 {[%clk 0:02:28.7]} 30. axb5
{[%clk 0:00:04.8]} 30... axb5 {[%clk 0:02:29.6]} 31. Ba3 {[%clk 0:00:04.6]}
31... Rc6 {[%clk 0:02:27]} 32. Bb2 {[%clk 0:00:04.7]} 32... g4 {[%clk
0:02:21.6]} 33. hxg4 {[%clk 0:00:04.3]} 33... hxg4 {[%clk 0:02:21.9]} 34. Rf2
{[%clk 0:00:03.8]} 34... gxf3 {[%clk 0:02:21]} 35. gxf3 {[%clk 0:00:04.7]} 35...
Ke6 {[%clk 0:02:21]} 36. Rfe2 {[%clk 0:00:04.5]} 36... Kd5 {[%clk 0:02:19.3]}
37. Rf2 {[%clk 0:00:04.5]} 37... b4 {[%clk 0:02:19.1]} 38. Rfe2 {[%clk
0:00:04.5]} 38... Rh8 {[%clk 0:02:19]} 39. Rf2 {[%clk 0:00:04.5]} 39... Rh1+
{[%clk 0:02:18.6]} 40. Bc1 {[%clk 0:00:04.7]} 40... Rc3 {[%clk 0:02:15.6]} 41.
Kb2 {[%clk 0:00:04.9]} 41... d3 {[%clk 0:02:13.7]} 42. cxd3 {[%clk 0:00:03.9]}
42... Bxd3 {[%clk 0:02:13.7]} 0-1

[Event "*** Titled Tuesday Blitz"]
[Site "Chess.com"]
[Date "2020.04.14"]
[Round "6"]
[White "bangchess21"]
[Black "Mfcyryd"]
[Result "0-1"]
[WhiteElo "2681"]
[BlackElo "2499"]
[TimeControl "180+1"]
[EndTime "11:02:05 PDT"]
[Termination "Mfcyryd won by resignation"]

1. e4 {[%clk 0:03:00.9]} 1... c6 {[%clk 0:02:57.1]} 2. d4 {[%clk 0:03:00.1]}
2... d5 {[%clk 0:02:57.1]} 3. exd5 {[%clk 0:03:01]} 3... cxd5 {[%clk 0:02:58]}
4. Bd3 {[%clk 0:02:59.4]} 4... Nf6 {[%clk 0:02:57.9]} 5. c3 {[%clk 0:02:59.7]}
5... Nc6 {[%clk 0:02:58.3]} 6. Bf4 {[%clk 0:02:59.9]} 6... g6 {[%clk 0:02:58.7]}
7. Nd2 {[%clk 0:02:59.1]} 7... Bg7 {[%clk 0:02:59.1]} 8. h3 {[%clk 0:02:59.2]}
8... O-O {[%clk 0:02:57.3]} 9. Ngf3 {[%clk 0:02:59.4]} 9... Bf5 {[%clk
0:02:52.1]} 10. Bxf5 {[%clk 0:02:59.3]} 10... gxf5 {[%clk 0:02:50.8]} 11. g4
{[%clk 0:02:59.8]} 11... fxg4 {[%clk 0:01:58]} 12. Ne5 {[%clk 0:02:59.3]} 12...
h5 {[%clk 0:01:52.8]} 13. hxg4 {[%clk 0:02:52.9]} 13... Nxe5 {[%clk 0:01:35]}
14. dxe5 {[%clk 0:02:35.2]} 14... Nxg4 {[%clk 0:01:33.9]} 15. Rxh5 {[%clk
0:02:35.2]} 15... f5 {[%clk 0:01:31.7]} 16. Qe2 {[%clk 0:02:16.3]} 16... Qe8
{[%clk 0:01:28.7]} 17. Rh1 {[%clk 0:02:14]} 17... Qa4 {[%clk 0:01:24.7]} 18. Bg3
{[%clk 0:01:59.5]} 18... d4 {[%clk 0:01:21.5]} 19. b3 {[%clk 0:01:46.1]} 19...
Qc6 {[%clk 0:01:12]} 20. Qc4+ {[%clk 0:01:33.6]} 20... Qxc4 {[%clk 0:01:10]} 21.
Nxc4 {[%clk 0:01:34.5]} 21... dxc3 {[%clk 0:01:06.2]} 22. f3 {[%clk 0:01:34.8]}
22... f4 {[%clk 0:01:02.5]} 23. fxg4 {[%clk 0:01:26.6]} 23... fxg3 {[%clk
0:01:03.4]} 24. O-O-O {[%clk 0:01:27.2]} 24... g2 {[%clk 0:00:43.3]} 25. Rhg1
{[%clk 0:01:22.4]} 25... Rf2 {[%clk 0:00:43.2]} 26. a3 {[%clk 0:01:12.7]} 26...
Bh6+ {[%clk 0:00:37.8]} 27. Kb1 {[%clk 0:01:12.9]} 27... c2+ {[%clk 0:00:35.2]}
0-1

[Event "*** Titled Tuesday Blitz"]
[Site "Chess.com"]
[Date "2020.04.14"]
[Round "6"]
[White "realmadridtv"]
[Black "Taran2004"]
[Result "1-0"]
[WhiteElo "2333"]
[BlackElo "2000"]
[TimeControl "180+1"]
[EndTime "11:02:05 PDT"]
[Termination "realmadridtv won by checkmate"]

1. e4 {[%clk 0:03:00.9]} 1... c6 {[%clk 0:02:58.6]} 2. Nc3 {[%clk 0:02:58.6]}
2... d5 {[%clk 0:02:57.9]} 3. Nf3 {[%clk 0:02:59.5]} 3... Bg4 {[%clk 0:02:56.2]}
4. h3 {[%clk 0:02:59.2]} 4... Bh5 {[%clk 0:02:55.5]} 5. exd5 {[%clk 0:02:56.5]}
5... cxd5 {[%clk 0:02:55.3]} 6. g4 {[%clk 0:02:55.9]} 6... Bg6 {[%clk
0:02:54.9]} 7. Bb5+ {[%clk 0:02:56]} 7... Nc6 {[%clk 0:02:53.7]} 8. Ne5 {[%clk
0:02:55.5]} 8... Rc8 {[%clk 0:02:53.2]} 9. d4 {[%clk 0:02:52.7]} 9... a6 {[%clk
0:02:52.8]} 10. Bxc6+ {[%clk 0:02:51.9]} 10... bxc6 {[%clk 0:02:52.8]} 11. h4
{[%clk 0:02:52.5]} 11... f6 {[%clk 0:02:43.9]} 12. h5 {[%clk 0:02:52.7]} 12...
Bf7 {[%clk 0:02:40.7]} 13. Nxf7 {[%clk 0:02:52.5]} 13... Kxf7 {[%clk 0:02:40.2]}
14. Qf3 {[%clk 0:02:48.2]} 14... e6 {[%clk 0:02:31.8]} 15. Bd2 {[%clk
0:02:43.7]} 15... Bd6 {[%clk 0:02:29.8]} 16. O-O-O {[%clk 0:02:43.3]} 16... Ne7
{[%clk 0:02:29.1]} 17. h6 {[%clk 0:02:40.7]} 17... g6 {[%clk 0:02:20]} 18. Rhe1
{[%clk 0:02:38.6]} 18... Rb8 {[%clk 0:01:59]} 19. Na4 {[%clk 0:02:30.1]} 19...
Rf8 {[%clk 0:01:51.4]} 20. Bc3 {[%clk 0:02:18.9]} 20... Qc7 {[%clk 0:01:45.1]}
21. Nc5 {[%clk 0:02:16.6]} 21... Bxc5 {[%clk 0:01:39.8]} 22. dxc5 {[%clk
0:02:17.5]} 22... f5 {[%clk 0:01:39.7]} 23. Qe3 {[%clk 0:02:10.1]} 23... Qd7
{[%clk 0:01:29.6]} 24. g5 {[%clk 0:01:58.4]} 24... d4 {[%clk 0:00:59.1]} 25.
Rxd4 {[%clk 0:01:45.8]} 25... Nd5 {[%clk 0:00:58.1]} 26. Qe5 {[%clk 0:01:44.1]}
26... Qe7 {[%clk 0:00:46.7]} 27. Rxd5 {[%clk 0:01:27.7]} 27... cxd5 {[%clk
0:00:45.1]} 28. c6 {[%clk 0:01:20.1]} 28... Rbc8 {[%clk 0:00:41.7]} 29. Bb4
{[%clk 0:01:15.6]} 29... Qxb4 {[%clk 0:00:27.6]} 30. Qxe6# {[%clk 0:01:14.7]}
1-0

[Event "*** Titled Tuesday Blitz"]
[Site "Chess.com"]
[Date "2020.04.14"]
[Round "6"]
[White "YumiBear"]
[Black "Alonmindlin"]
[Result "0-1"]
[WhiteElo "2525"]
[BlackElo "2707"]
[TimeControl "180+1"]
[EndTime "11:02:08 PDT"]
[Termination "Alonmindlin won by resignation"]

1. Nf3 {[%clk 0:03:00.9]} 1... Nf6 {[%clk 0:02:58.9]} 2. g3 {[%clk 0:03:01]}
2... b5 {[%clk 0:02:58.1]} 3. Bg2 {[%clk 0:03:01.3]} 3... Bb7 {[%clk 0:02:58.6]}
4. O-O {[%clk 0:03:01.4]} 4... e6 {[%clk 0:02:58.8]} 5. d4 {[%clk 0:03:01.8]}
5... Be7 {[%clk 0:02:58.4]} 6. a4 {[%clk 0:03:02.2]} 6... a6 {[%clk 0:02:55.4]}
7. c3 {[%clk 0:02:59.4]} 7... O-O {[%clk 0:02:55.2]} 8. axb5 {[%clk 0:02:39.6]}
8... axb5 {[%clk 0:02:53.6]} 9. Rxa8 {[%clk 0:02:39.9]} 9... Bxa8 {[%clk
0:02:54.5]} 10. Nbd2 {[%clk 0:02:35.9]} 10... b4 {[%clk 0:02:47.3]} 11. c4
{[%clk 0:02:35.6]} 11... c5 {[%clk 0:02:38.9]} 12. dxc5 {[%clk 0:02:34.5]} 12...
Na6 {[%clk 0:02:39.2]} 13. Nb3 {[%clk 0:02:27]} 13... Nxc5 {[%clk 0:02:38.3]}
14. Be3 {[%clk 0:02:26.4]} 14... Qc7 {[%clk 0:02:29.9]} 15. Nbd4 {[%clk
0:02:16.4]} 15... Nce4 {[%clk 0:02:22.6]} 16. Qd3 {[%clk 0:01:57.8]} 16... Rc8
{[%clk 0:02:11.5]} 17. Ra1 {[%clk 0:01:55.9]} 17... Bb7 {[%clk 0:02:03]} 18. b3
{[%clk 0:01:53.8]} 18... Nc3 {[%clk 0:01:56.2]} 19. Bf4 {[%clk 0:00:16.6]} 19...
e5 {[%clk 0:01:50.4]} 20. Bxe5 {[%clk 0:00:09.8]} 20... Qc5 {[%clk 0:01:45.9]}
21. Bf4 {[%clk 0:00:07.2]} 21... Be4 {[%clk 0:01:45.8]} 22. Qd2 {[%clk
0:00:07.2]} 22... h6 {[%clk 0:01:41.6]} 23. Be3 {[%clk 0:00:06.3]} 23... Qc7
{[%clk 0:01:40.6]} 24. Bf4 {[%clk 0:00:04]} 24... Qb7 {[%clk 0:01:40]} 25. Be3
{[%clk 0:00:04]} 25... Ng4 {[%clk 0:01:39.7]} 26. h3 {[%clk 0:00:03.2]} 26...
Nxe3 {[%clk 0:01:39.2]} 27. Qxe3 {[%clk 0:00:04.1]} 27... Bc5 {[%clk 0:01:38.9]}
28. Qd2 {[%clk 0:00:04]} 28... Bxd4 {[%clk 0:01:38.5]} 29. Nxd4 {[%clk
0:00:01.7]} 29... Bxg2 {[%clk 0:01:38.7]} 30. Nf5 {[%clk 0:00:02.3]} 30... Bxh3
{[%clk 0:01:37.3]} 31. f3 {[%clk 0:00:02.9]} 31... Bxf5 {[%clk 0:01:35.9]} 0-1

[Event "*** Titled Tuesday Blitz"]
[Site "Chess.com"]
[Date "2020.04.14"]
[Round "6"]
[White "Mischuk_D"]
[Black "Korchmar_Vasiliy"]
[Result "1-0"]
[WhiteElo "2707"]
[BlackElo "2534"]
[TimeControl "180+1"]
[EndTime "11:02:12 PDT"]
[Termination "Mischuk_D won on time"]

1. e4 {[%clk 0:03:00.9]} 1... c5 {[%clk 0:02:59.7]} 2. Nf3 {[%clk 0:03:00.6]}
2... d6 {[%clk 0:03:00.2]} 3. d4 {[%clk 0:03:00.9]} 3... cxd4 {[%clk 0:03:01.1]}
4. Qxd4 {[%clk 0:03:01.6]} 4... Nc6 {[%clk 0:02:58.3]} 5. Qe3 {[%clk 0:03:01.8]}
5... Nf6 {[%clk 0:02:56.3]} 6. Be2 {[%clk 0:03:01.2]} 6... g6 {[%clk 0:02:54.4]}
7. h3 {[%clk 0:03:01.5]} 7... Bg7 {[%clk 0:02:54.3]} 8. O-O {[%clk 0:03:01.8]}
8... O-O {[%clk 0:02:54.5]} 9. Rd1 {[%clk 0:03:02]} 9... Qc7 {[%clk 0:02:36.7]}
10. c4 {[%clk 0:03:01.8]} 10... Nb4 {[%clk 0:02:14.7]} 11. Qb3 {[%clk
0:02:46.1]} 11... Na6 {[%clk 0:02:04]} 12. Nc3 {[%clk 0:02:46.3]} 12... Nc5
{[%clk 0:02:03.3]} 13. Qc2 {[%clk 0:02:46.6]} 13... Be6 {[%clk 0:01:44.3]} 14.
Bf4 {[%clk 0:02:45.9]} 14... Rac8 {[%clk 0:01:38.7]} 15. Rac1 {[%clk 0:02:36.7]}
15... h6 {[%clk 0:01:34.2]} 16. Bh2 {[%clk 0:02:35.3]} 16... a6 {[%clk
0:01:28.6]} 17. e5 {[%clk 0:02:34.5]} 17... dxe5 {[%clk 0:01:25.7]} 18. Bxe5
{[%clk 0:02:33.6]} 18... Qb6 {[%clk 0:01:21.4]} 19. b3 {[%clk 0:02:18.6]} 19...
Bf5 {[%clk 0:01:20.9]} 20. Qd2 {[%clk 0:02:17.1]} 20... Rfd8 {[%clk 0:01:06.7]}
21. Qe1 {[%clk 0:02:17.2]} 21... Qa5 {[%clk 0:00:36.3]} 22. Bxf6 {[%clk
0:02:10.9]} 22... exf6 {[%clk 0:00:31.9]} 23. Nd5 {[%clk 0:02:06.5]} 23... Qxe1+
{[%clk 0:00:19.6]} 24. Rxe1 {[%clk 0:02:07.4]} 24... Kf8 {[%clk 0:00:14.6]} 25.
Bf1 {[%clk 0:02:02.2]} 25... Re8 {[%clk 0:00:06.4]} 26. Red1 {[%clk 0:02:00.6]}
26... Rcd8 {[%clk 0:00:05.5]} 27. b4 {[%clk 0:01:55.8]} 27... Ne4 {[%clk
0:00:05.3]} 28. g4 {[%clk 0:01:51.2]} 28... Be6 {[%clk 0:00:05.2]} 29. Ne3
{[%clk 0:01:48.5]} 29... Rxd1 {[%clk 0:00:06.1]} 30. Rxd1 {[%clk 0:01:48.4]}
30... Rc8 {[%clk 0:00:05.3]} 31. Nd4 {[%clk 0:01:48.1]} 31... Nc3 {[%clk
0:00:05.3]} 32. Nxe6+ {[%clk 0:01:47.6]} 32... fxe6 {[%clk 0:00:06.2]} 33. Rd7
{[%clk 0:01:47.5]} 33... f5 {[%clk 0:00:04.5]} 34. Rxb7 {[%clk 0:01:44.8]} 34...
Nxa2 {[%clk 0:00:03.5]} 35. c5 {[%clk 0:01:42.3]} 1-0

[Event "*** Titled Tuesday Blitz"]
[Site "Chess.com"]
[Date "2020.04.14"]
[Round "6"]
[White "zacachess"]
[Black "ninullia"]
[Result "0-1"]
[WhiteElo "2283"]
[BlackElo "2463"]
[TimeControl "180+1"]
[EndTime "11:02:13 PDT"]
[Termination "ninullia won on time"]

1. d4 {[%clk 0:02:59.7]} 1... Nf6 {[%clk 0:02:58.6]} 2. Bf4 {[%clk 0:02:43.5]}
2... d5 {[%clk 0:02:52.3]} 3. Nc3 {[%clk 0:02:40.4]} 3... c5 {[%clk 0:02:52.7]}
4. e3 {[%clk 0:02:14.7]} 4... a6 {[%clk 0:02:51.5]} 5. Nf3 {[%clk 0:02:14.3]}
5... Nc6 {[%clk 0:02:50.5]} 6. Be2 {[%clk 0:02:14.2]} 6... e6 {[%clk 0:02:48.7]}
7. O-O {[%clk 0:02:14.2]} 7... Bd6 {[%clk 0:02:48.9]} 8. Bg3 {[%clk 0:02:09.2]}
8... O-O {[%clk 0:02:46.5]} 9. dxc5 {[%clk 0:02:09]} 9... Bxc5 {[%clk
0:02:46.4]} 10. Ne5 {[%clk 0:01:59.9]} 10... Nxe5 {[%clk 0:02:44.4]} 11. Bxe5
{[%clk 0:01:59]} 11... b5 {[%clk 0:02:45]} 12. Bf3 {[%clk 0:01:56]} 12... Bb7
{[%clk 0:02:45.2]} 13. Ne2 {[%clk 0:01:55.8]} 13... Nd7 {[%clk 0:02:39.7]} 14.
Bd4 {[%clk 0:01:47.7]} 14... Rc8 {[%clk 0:02:38.5]} 15. Bxc5 {[%clk 0:01:42.9]}
15... Nxc5 {[%clk 0:02:37]} 16. c3 {[%clk 0:01:42.7]} 16... e5 {[%clk
0:02:32.7]} 17. Ng3 {[%clk 0:01:37.4]} 17... e4 {[%clk 0:02:30.8]} 18. Bg4
{[%clk 0:01:33.6]} 18... Rc6 {[%clk 0:02:27.8]} 19. Qd4 {[%clk 0:01:29.5]} 19...
g6 {[%clk 0:02:23]} 20. Rad1 {[%clk 0:01:19.7]} 20... Nd3 {[%clk 0:02:20.3]} 21.
Rd2 {[%clk 0:01:09.4]} 21... Rc4 {[%clk 0:02:14.7]} 22. Qa7 {[%clk 0:01:02]}
22... Qc7 {[%clk 0:02:15.3]} 23. b3 {[%clk 0:00:37.8]} 23... Rc5 {[%clk
0:02:09.3]} 24. b4 {[%clk 0:00:35.6]} 24... Rc4 {[%clk 0:02:08.9]} 25. Rxd3
{[%clk 0:00:24.1]} 25... exd3 {[%clk 0:02:01.4]} 26. e4 {[%clk 0:00:23.8]} 26...
d4 {[%clk 0:01:59.9]} 27. cxd4 {[%clk 0:00:12.4]} 27... Ra8 {[%clk 0:01:58.6]}
28. Qc5 {[%clk 0:00:09.5]} 28... Rxc5 {[%clk 0:01:58]} 29. bxc5 {[%clk
0:00:10.3]} 29... Rd8 {[%clk 0:01:53.5]} 30. d5 {[%clk 0:00:02.7]} 30... Qxc5
{[%clk 0:01:52]} 31. Rd1 {[%clk 0:00:03.6]} 31... Qc2 {[%clk 0:01:51.7]} 32. h3
{[%clk 0:00:03]} 32... d2 {[%clk 0:01:51.8]} 33. h4 {[%clk 0:00:03.9]} 33... h5
{[%clk 0:01:50.7]} 34. Bf3 {[%clk 0:00:03.3]} 34... Qxa2 {[%clk 0:01:47.6]} 35.
Ne2 {[%clk 0:00:03.4]} 35... b4 {[%clk 0:01:44.5]} 0-1

[Event "*** Titled Tuesday Blitz"]
[Site "Chess.com"]
[Date "2020.04.14"]
[Round "6"]
[White "TheBigBoss04"]
[Black "Grandmaster2B"]
[Result "1-0"]
[WhiteElo "2763"]
[BlackElo "2537"]
[TimeControl "180+1"]
[EndTime "11:02:16 PDT"]
[Termination "TheBigBoss04 won by resignation"]

1. Nf3 {[%clk 0:03:00.9]} 1... Nf6 {[%clk 0:02:58.7]} 2. d4 {[%clk 0:03:01.6]}
2... e6 {[%clk 0:02:59]} 3. Bg5 {[%clk 0:03:02.2]} 3... d5 {[%clk 0:02:57.2]} 4.
Nbd2 {[%clk 0:03:02.7]} 4... Be7 {[%clk 0:02:56.8]} 5. e3 {[%clk 0:03:02.6]}
5... Nbd7 {[%clk 0:02:55]} 6. c4 {[%clk 0:03:02.7]} 6... O-O {[%clk 0:02:54.7]}
7. Bd3 {[%clk 0:03:02.8]} 7... c5 {[%clk 0:02:54.6]} 8. O-O {[%clk 0:03:03.1]}
8... a6 {[%clk 0:02:54.7]} 9. cxd5 {[%clk 0:03:02.8]} 9... Nxd5 {[%clk 0:02:53]}
10. Bxe7 {[%clk 0:03:03]} 10... Qxe7 {[%clk 0:02:53.9]} 11. Rc1 {[%clk
0:03:02.7]} 11... b5 {[%clk 0:02:50.1]} 12. Ne4 {[%clk 0:02:57.3]} 12... cxd4
{[%clk 0:02:43.1]} 13. Nxd4 {[%clk 0:02:55.8]} 13... Bb7 {[%clk 0:02:42.5]} 14.
a4 {[%clk 0:02:53.2]} 14... b4 {[%clk 0:02:39.4]} 15. a5 {[%clk 0:02:52.8]}
15... Rac8 {[%clk 0:02:23.9]} 16. Qe2 {[%clk 0:02:52.5]} 16... f5 {[%clk
0:02:18.9]} 17. Nd2 {[%clk 0:02:43.6]} 17... Qd6 {[%clk 0:02:01.2]} 18. Nc4
{[%clk 0:02:40.2]} 18... Qe7 {[%clk 0:01:44.5]} 19. Rfd1 {[%clk 0:02:35.2]}
19... Nc5 {[%clk 0:01:40.7]} 20. Bb1 {[%clk 0:02:31.7]} 20... g6 {[%clk
0:01:35.2]} 21. Ne5 {[%clk 0:02:23.2]} 21... Nd7 {[%clk 0:01:12.3]} 22. Nxd7
{[%clk 0:02:14.1]} 22... Qxd7 {[%clk 0:01:11.3]} 23. Ba2 {[%clk 0:02:13.7]}
23... Kh8 {[%clk 0:00:49.1]} 24. Nf3 {[%clk 0:02:10.7]} 24... Rxc1 {[%clk
0:00:37.3]} 25. Rxc1 {[%clk 0:02:09.9]} 25... Rc8 {[%clk 0:00:38.1]} 26. Rd1
{[%clk 0:02:09.9]} 26... Qc7 {[%clk 0:00:36.4]} 27. Qd2 {[%clk 0:02:06.7]} 27...
Qxa5 {[%clk 0:00:25]} 28. Qd4+ {[%clk 0:02:06]} 28... Kg8 {[%clk 0:00:25.7]} 29.
Bb3 {[%clk 0:02:02.6]} 29... Qc7 {[%clk 0:00:20.5]} 30. h4 {[%clk 0:02:00]}
30... a5 {[%clk 0:00:15.4]} 31. Ng5 {[%clk 0:01:56.9]} 31... Qc6 {[%clk
0:00:04.7]} 32. Qe5 {[%clk 0:01:52.5]} 32... Re8 {[%clk 0:00:03.4]} 33. e4
{[%clk 0:01:44]} 33... Qc7 {[%clk 0:00:02.3]} 34. Rxd5 {[%clk 0:01:31.8]} 34...
Qc1+ {[%clk 0:00:01.5]} 35. Rd1 {[%clk 0:01:31.9]} 1-0